[Event "IIFL Wealth 4th Mumbai GM"]
[Site "Mumbai"]
[Date "2018.12.31"]
[Round "2"]
[White "Shah, Ram Surat Prasad"]
[Black "Patil, Pratik"]
[Result "0-1"]
[ECO "B42"]
[WhiteElo "1639"]
[BlackElo "2178"]
[Annotator "NA"]
[PlyCount "26"]
[EventDate "2018.12.30"]
[EventType "swiss"]
[EventCountry "IND"]
[SourceTitle "playchess.com"]
[Source "ChessBase"]
[SourceQuality "1"]
[TimeControl "40/5400+30:1800+30"]

1. e4 {[%emt 0:00:00]} c5 {[%emt 0:00:00]} 2. Nf3 {[%emt 0:00:00]} e6 {[%emt 0:00:00]} 3. d4 {[%emt 0:00:04]} cxd4 {[%emt 0:00:00]} 4. Nxd4 {[%emt 0:00:18]} a6 {[%emt 0:00:00]} 5. Bd3 {[%emt 0:01:08]} Bc5 {[%emt 0:00:00]} 6. Be3 {[%emt 0:01:40]} Qb6 {[%emt 0:01:02]} 7. Nf5 {[%emt 0:03:31]} exf5 {[%emt 0:00:18]} 8. Bxc5 {[%emt 0:00:32]} Qxc5 {[%emt 0:00:06]} 9. O-O {[%emt 0:00:24]} fxe4 {[%emt 0:13:18]} 10. Re1 {[%emt 0:03:51]} d5 {[%emt 0:03:41]} 11. Nc3 {[%emt 0:02:30]} Nf6 {[%emt 0:03:34]} 12. Bxe4 {[%emt 0:04:56]} dxe4 {[%emt 0:00:54]} 13. Rxe4+ {[%emt 0:00:36]} Be6 {[%emt 0:00:21]} 0-1

[Event "IIFL Wealth 4th Mumbai GM"]
[Site "Mumbai"]
[Date "2018.12.31"]
[Round "2"]
[White "Dhungel, Uttam"]
[Black "Thrish Karthik"]
[Result "0-1"]
[ECO "D20"]
[WhiteElo "1587"]
[BlackElo "2168"]
[Annotator "NA"]
[PlyCount "185"]
[EventDate "2018.12.30"]
[EventType "swiss"]
[EventCountry "IND"]
[SourceTitle "playchess.com"]
[Source "ChessBase"]
[SourceQuality "1"]
[TimeControl "40/5400+30:1800+30"]

1. d4 d5 2. c4 dxc4 3. Nc3 c6 4. e3 e5 5. Bxc4 exd4 6. exd4 Nf6 7. Nf3 Bd6 8. O-O O-O 9. Bg5 h6 10. Bh4 Bf5 11. Re1 Nbd7 12. d5 $146 {D20: Queen's Gambit Accepted: 3 e3 and 3 e4} ({Predecessor:} 12. Ne5 Qc7 13. Nxd7 Nxd7 14. Qh5 Nb6 15. Bb3 Bh7 16. Ne4 Be7 17. Bg3 Qd8 18. Nc5 Bf6 19. Rad1 Nd5 20. Nxb7 {1-0 (30) Bergez,L (2368)-Almeida Toledano,D (2295) Catalunya 2014}) 12... Nb6 13. Bb3 cxd5 14. Nd4 Bg6 15. Qf3 Bb4 16. Re3 Bxc3 17. Rxc3 Be4 18. Bxf6 Qxf6 19. Qxf6 gxf6 20. Rac1 Rfd8 21. Rc7 Rab8 22. f3 Bd3 23. Re1 Re8 24. Rxe8+ Rxe8 25. Rxb7 Re1+ 26. Kf2 Rb1 27. Ke3 Bg6 28. Rxa7 Rxb2 29. g3 Rxh2 30. a4 Nc4+ 31. Kf4 Rd2 32. Nf5 Bxf5 33. Kxf5 Rd3 34. Bxc4 dxc4 35. Ke4 Ra3 36. g4 c3 37. f4 c2 38. Rc7 Rxa4+ 39. Kf5 Ra5+ 40. Ke4 Ra2 41. Rc8+ Kg7 42. f5 Ra4+ 43. Kf3 Ra3+ 44. Kf4 Ra2 45. Kf3 Rb2 46. Kf4 Ra2 47. Kf3 h5 48. gxh5 Kh6 49. Kg4 Ra4+ 50. Kf3 Kxh5 51. Rxc2 Kg5 52. Rc7 Kxf5 53. Rxf7 Ra3+ 54. Kf2 Kg5 55. Rb7 f5 56. Rb4 Ra2+ 57. Kf3 Ra1 58. Kf2 Ra3 59. Kg2 Re3 60. Kf2 Re5 61. Ra4 f4 62. Ra3 Rb5 63. Kf3 Rc5 64. Rb3 Re5 65. Ra3 Rc5 66. Rb3 Ra5 67. Rc3 Kf5 68. Rb3 Ke5 69. Rd3 Ra1 70. Rb3 Rf1+ 71. Ke2 Rh1 72. Rb4 Kf5 73. Kf3 Rh3+ 74. Kf2 Ra3 75. Rc4 Kg4 76. Rc8 Ra2+ 77. Kf1 Kg3 78. Rg8+ Kf3 79. Kg1 Ra1+ 80. Kh2 Kf2 81. Rg2+ Ke3 82. Rb2 Re1 83. Rb3+ Kf2 84. Ra3 f3 85. Ra2+ Re2 86. Ra1 Re3 87. Ra2+ Kf1 88. Ra1+ Re1 89. Ra8 f2 90. Ra7 $11 Ke2 91. Ra2+ Kf1 $2 (91... Ke3 {mates} 92. Ra3+ Kd4 93. Ra4+ Kc3 (93... Kc5 94. Ra5+ Kb6 95. Ra3 f1=Q 96. Kg3 Qg1+ 97. Kf3 Rf1+ 98. Ke2 Qf2+ 99. Kd3 Qf3+ 100. Kd4 Qxa3 101. Ke5 Qe3+ 102. Kd5 Rd1+ 103. Kc4 Rd4#) 94. Ra3+ Kb4 95. Rf3) 92. Ra1 $2 {Re3 Ra2 Re2} Rxa1 {Re1 Ra2 Rd1} 93. Kg3 {Rd3+ Kh2} 0-1

[Event "IIFL Wealth 4th Mumbai GM"]
[Site "Mumbai"]
[Date "2018.12.31"]
[Round "2"]
[White "Ahsan, Ali Jewel"]
[Black "Ghelani Dhairya"]
[Result "0-1"]
[ECO "E12"]
[WhiteElo "1363"]
[BlackElo "2146"]
[Annotator "NA"]
[PlyCount "38"]
[EventDate "2018.12.30"]
[EventType "swiss"]
[EventCountry "IND"]
[SourceTitle "playchess.com"]
[Source "ChessBase"]
[SourceQuality "1"]
[TimeControl "40/5400+30:1800+30"]

1. d4 {[%emt 0:00:00]} Nf6 {[%emt 0:00:00]} 2. c4 e6 {[%emt 0:00:00]} 3. Nf3 {[%emt 0:00:00]} b6 {[%emt 0:00:00]} 4. Bg5 {[%emt 0:00:29]} Bb7 {[%emt 0:00:00]} 5. e3 {[%emt 0:00:24]} Be7 {[%emt 0:00:00]} 6. Bd3 {[%emt 0:00:46]} O-O {[%emt 0:01:01]} 7. O-O {[%emt 0:01:40]} d5 {[%emt 0:01:56]} 8. Re1 {[%emt 0:00:57]} Nbd7 {[%emt 0:00:38]} 9. Nc3 {[%emt 0:01:21]} c5 {[%emt 0:04:33]} 10. cxd5 {[%emt 0:02:23]} Nxd5 {[%emt 0:01:13]} 11. Bxe7 {[%emt 0:01:08]} Qxe7 {[%emt 0:00:02]} 12. Ne4 {[%emt 0:02:15]} cxd4 {[%emt 0:02:48]} 13. Nxd4 {[%emt 0:01:18]} Rfd8 {[%emt 0:00:25]} 14. Nb5 {[%emt 0:02:37]} Ne5 {[%emt 0:03:41]} 15. Nec3 {[%emt 0:11:38]} Nxc3 {[%emt 0:01:12]} 16. Bxh7+ {[%emt 0:06:07]} Kxh7 {[%emt 0:00:14]} 17. Qc2+ {[%emt 0:00:48]} Ne4 {[%emt 0:00:30]} 18. f3 {[%emt 0:03:05]} Rd2 {[%emt 0:00:10]} 19. Qb1 {[%emt 0:01:45]} Nxf3+ {[%emt 0:00:02]} 0-1

[Event "IIFL Wealth 4th Mumbai GM"]
[Site "Mumbai"]
[Date "2018.12.31"]
[Round "2"]
[White "Kafle, Binod"]
[Black "Rakshitta Ravi"]
[Result "0-1"]
[ECO "C50"]
[WhiteElo "1191"]
[BlackElo "2141"]
[Annotator "NA"]
[PlyCount "70"]
[EventDate "2018.12.30"]
[EventType "swiss"]
[EventCountry "IND"]
[SourceTitle "playchess.com"]
[Source "ChessBase"]
[SourceQuality "1"]
[TimeControl "40/5400+30:1800+30"]

1. e4 {[%emt 0:00:00]} e5 {[%emt 0:00:14]} 2. Nf3 {[%emt 0:00:00]} Nc6 {[%emt 0:00:02]} 3. Bc4 {[%emt 0:00:47]} Bc5 {[%emt 0:00:06]} 4. d3 {[%emt 0:00:39]} Nf6 {[%emt 0:00:08]} 5. Bg5 {[%emt 0:01:36]} h6 {[%emt 0:00:27]} 6. Bxf6 {[%emt 0:01:00]} Qxf6 {[%emt 0:00:08]} 7. Nc3 {[%emt 0:00:39]} d6 {[%emt 0:00:18]} 8. Nd5 {[%emt 0:01:43]} Qd8 {[%emt 0:00:02]} 9. h3 {[%emt 0:01:05]} Ne7 {[%emt 0:01:42]} 10. O-O {[%emt 0:05:32]} Nxd5 {[%emt 0:00:12]} 11. Bxd5 {[%emt 0:00:41]} a5 {[%emt 0:00:34]} 12. c3 {[%emt 0:02:48]} Bb6 {[%emt 0:02:10]} 13. d4 {[%emt 0:03:01]} Qe7 {[%emt 0:01:31]} 14. dxe5 {[%emt 0:03:34]} dxe5 {[%emt 0:00:01]} 15. Nd2 {[%emt 0:01:48]} O-O {[%emt 0:01:07]} 16. Qb3 {[%emt 0:05:25]} Qg5 {[%emt 0:02:26]} 17. Nf3 {[%emt 0:02:12]} Qf6 {[%emt 0:00:05]} 18. Rad1 {[%emt 0:04:24]} Bxh3 {[%emt 0:02:51]} 19. gxh3 {[%emt 0:03:56]} Qxf3 {[%emt 0:00:07]} 20. c4 {[%emt 0:01:50]} Qxb3 {[%emt 0:00:31]} 21. axb3 {[%emt 0:00:01]} c6 {[%emt 0:00:01]} 22. c5 {[%emt 0:01:11]} Bxc5 {[%emt 0:01:46]} 23. Bc4 {[%emt 0:00:01]} Bd4 {[%emt 0:00:09]} 24. Rd2 {[%emt 0:01:49]} Rfd8 {[%emt 0:00:05]} 25. Rc2 {[%emt 0:01:29]} Rd6 {[%emt 0:00:40]} 26. Kh1 {[%emt 0:00:55]} Rad8 {[%emt 0:03:37]} 27. f4 {[%emt 0:00:48]} exf4 {[%emt 0:04:12]} 28. Rxf4 {[%emt 0:00:48]} Rf6 {[%emt 0:00:02]} 29. Rxf6 {[%emt 0:04:07]} Bxf6 {[%emt 0:00:03]} 30. Rf2 {[%emt 0:00:48]} b5 {[%emt 0:00:12]} 31. e5 {[%emt 0:01:09]} Rd1+ {[%emt 0:01:01]} 32. Kg2 {[%emt 0:00:36]} bxc4 {[%emt 0:00:02]} 33. exf6 {[%emt 0:00:38]} cxb3 {[%emt 0:00:02]} 34. Kg3 {[%emt 0:03:23]} a4 {[%emt 0:00:47]} 35. fxg7 {[%emt 0:01:38]} Rc1 {[%emt 0:00:09]} 0-1

[Event "IIFL Wealth 4th Mumbai GM"]
[Site "Mumbai"]
[Date "2018.12.31"]
[Round "2"]
[White "Mahalakshmi D M"]
[Black "Chowdhury, Sohel"]
[Result "1-0"]
[ECO "D45"]
[WhiteElo "1145"]
[BlackElo "2012"]
[Annotator "NA"]
[PlyCount "121"]
[EventDate "2018.12.30"]
[EventType "swiss"]
[EventCountry "IND"]
[SourceTitle "playchess.com"]
[Source "ChessBase"]
[SourceQuality "1"]
[TimeControl "40/5400+30:1800+30"]

1. d4 {[%emt 0:00:00]} d5 {[%emt 0:00:00]} 2. c4 {[%emt 0:00:00]} c6 {[%emt 0:00:10]} 3. Nf3 {[%emt 0:00:33]} Nf6 {[%emt 0:00:20]} 4. Nc3 {[%emt 0:00:05]} e6 {[%emt 0:02:23]} 5. e3 {[%emt 0:00:05]} Nbd7 {[%emt 0:00:11]} 6. Qc2 {[%emt 0:00:03]} Bd6 {[%emt 0:05:04]} 7. b3 {[%emt 0:00:06]} O-O {[%emt 0:00:41]} 8. Be2 {[%emt 0:00:04]} e5 {[%emt 0:04:08]} 9. cxd5 {[%emt 0:00:50]} cxd5 {[%emt 0:00:03]} 10. Nb5 {[%emt 0:01:04]} Bb8 {[%emt 0:04:30]} 11. dxe5 {[%emt 0:07:36]} Nxe5 {[%emt 0:00:25]} 12. O-O {[%emt 0:01:19]} a6 {[%emt 0:02:28]} 13. Nbd4 {[%emt 0:01:11]} Qd6 {[%emt 0:09:12]} 14. a4 {[%emt 0:02:49]} Nxf3+ {[%emt 0:02:01]} 15. Nxf3 {[%emt 0:02:51]} Re8 {[%emt 0:02:47]} 16. Ba3 {[%emt 0:02:05]} Qb6 {[%emt 0:04:25]} 17. Rac1 {[%emt 0:04:10]} h6 {[%emt 0:07:30]} 18. Rfd1 {[%emt 0:03:12]} Be6 {[%emt 0:05:04]} 19. Nd4 {[%emt 0:12:44]} Bg4 {[%emt 0:07:43]} 20. Bxg4 {[%emt 0:03:56]} Nxg4 {[%emt 0:00:02]} 21. Nf3 {[%emt 0:01:02]} Qe6 {[%emt 0:05:28]} 22. Qd3 {[%emt 0:06:28]} Rd8 {[%emt 0:03:12]} 23. Bb2 {[%emt 0:01:57]} Ne5 {[%emt 0:05:01]} 24. Qe2 {[%emt 0:09:59]} Nc6 {[%emt 0:00:57]} 25. g3 {[%emt 0:03:25]} Ba7 {[%emt 0:03:57]} 26. Bd4 {[%emt 0:01:39]} Bxd4 {[%emt 0:03:33]} 27. Nxd4 {[%emt 0:00:53]} Nxd4 {[%emt 0:00:02]} 28. Rxd4 {[%emt 0:00:02]} Rd7 {[%emt 0:03:31]} 29. Rcd1 {[%emt 0:04:22]} Rad8 {[%emt 0:01:20]} 30. Qd2 {[%emt 0:00:36]} Qb6 {[%emt 0:02:02]} 31. Qc2 {[%emt 0:06:23]} Qc6 {[%emt 0:07:17]} 32. Qf5 {[%emt 0:01:47]} Qe6 {[%emt 0:00:41]} 33. Qc2 {[%emt 0:01:52]} Qc6 {[%emt 0:03:15]} 34. Qd3 {[%emt 0:00:54]} Qe6 {[%emt 0:01:01]} 35. Qd2 {[%emt 0:02:01]} Qb6 {[%emt 0:00:44]} 36. Qb2 {[%emt 0:02:44]} Qc6 {[%emt 0:00:44]} 37. Rc1 {[%emt 0:02:56]} Qb6 {[%emt 0:01:09]} 38. Qc3 {[%emt 0:00:11]} Qe6 {[%emt 0:01:41]} 39. Qa5 {[%emt 0:04:27]} g6 {[%emt 0:01:04]} 40. Rcd1 {[%emt 0:00:00]} h5 {[%emt 0:00:00]} 41. Qd2 {[%emt 0:02:50]} Qb6 {[%emt 0:01:16]} 42. b4 {[%emt 0:02:12]} Qc6 {[%emt 0:01:41]} 43. a5 {[%emt 0:03:39]} f5 {[%emt 0:03:14]} 44. h4 {[%emt 0:10:35]} Kh7 {[%emt 0:01:34]} 45. Rc1 {[%emt 0:01:09]} Qe6 {[%emt 0:04:31]} 46. Rc5 {[%emt 0:01:13]} Qf7 {[%emt 0:01:05]} 47. b5 {[%emt 0:01:58]} Qe6 {[%emt 0:03:02]} 48. b6 {[%emt 0:04:52]} Qe5 {[%emt 0:02:31]} 49. Qc1 {[%emt 0:02:28]} Re8 {[%emt 0:03:49]} 50. Qc2 {[%emt 0:02:27]} Kh6 {[%emt 0:01:05]} 51. Qd2 {[%emt 0:00:51]} Kh7 {[%emt 0:00:00]} 52. Qc2 {[%emt 0:00:09]} Kh6 {[%emt 0:01:00]} 53. Qd2 {[%emt 0:00:51]} Red8 {[%emt 0:07:13]} 54. e4+ {[%emt 0:02:52]} Kh7 {[%emt 0:00:31]} 55. Rcxd5 {[%emt 0:00:54]} Rxd5 {[%emt 0:00:33]} 56. Rxd5 {[%emt 0:01:09]} Rxd5 {[%emt 0:00:08]} 57. exd5 {[%emt 0:00:26]} Qd6 {[%emt 0:00:27]} 58. Qd4 {[%emt 0:00:24]} Kg8 {[%emt 0:04:39]} 59. Qc4 {[%emt 0:00:31]} Kf7 {[%emt 0:03:45]} 60. Qc7+ {[%emt 0:00:12]} Qe7 {[%emt 0:00:13]} 61. d6 {[%emt 0:00:05] Qd8} 1-0